Cogmind - Beta 16 @@@ ROGUE MODE // 2026.01.08 @ 20:53:16 Player: Dylab Result: Destroyed by Y-45 Defender with Heavy Assault Rifle Performance ------------- Evolutions (1) 500 Regions Visited (2) 400 Robots Destroyed (21) 105 Value Destroyed (526) 526 Prototype IDs (0) 0 Alien Tech Used (0) 0 Bonus (0) 0 TOTAL SCORE: 1531 Bonus ------- None Cogmind --------- Core Integrity 0/400 Matter 290/300 Energy 85/100 System Corruption 0% Temperature Warm (181) Movement Core (450) Ox8 Location -9/Materials Parts ------- > --- POWER (2) -------- (None) > --- PROPULSION (2) --- (None) > --- UTILITY (3) ------ Small Storage Unit Large Storage Unit Hacking Suite > --- WEAPON (2) ------- Katana > --- INVENTORY (15) --- Improved Heat Sink Peak State ------------ > --- POWER ------------ Light Ion Engine Light Nuclear Core > --- PROPULSION ------- Aluminum Leg Aluminum Leg > --- UTILITY ---------- Small Storage Unit Large Storage Unit Hacking Suite > --- WEAPON ----------- Particle Gun Light Assault Rifle > --- INVENTORY -------- Ion Engine Improved Heat Sink [Rating: 14] Favorites ----------- Power Ion Engine Engine Ion Engine Power Core Light Nuclear Core Propulsion Light Treads Treads Light Treads Leg Aluminum Leg Utility Large Storage Unit Storage Large Storage Unit Processor Visual Processing Unit Hackware Hacking Suite Weapon Assault Rifle Energy Gun Particle Gun Ballistic Gun Assault Rifle Slashing Weapon Katana Special Melee Weapon Datajack Build | -11 -10 -9 ------- Run | Yrd Mat Mat Slots Evolved 2 | . . 2 Power 1 | . . 1 Propulsion . | . . . Utility 1 | . . 1 Weapon . | . . . Parts Attached 18 | 6 10 2 Power 4 | 1 2 1 Engine 2 | 1 . 1 Core 2 | . 2 . Reactor . | . . . Propulsion 4 | 2 2 . Treads 2 | 2 . . Leg 2 | . 2 . Wheel . | . . . Hover . | . . . Flight . | . . . Utility 4 | 1 3 . Device . | . . . Storage 2 | 1 1 . Processor 1 | . 1 . Hackware 1 | . 1 . Protection . | . . . Artifact . | . . . Weapon 6 | 2 3 1 Energy Gun 1 | . 1 . Energy Cannon . | . . . Ballistic Gun 3 | 2 1 . Ballistic Cannon . | . . . Launcher . | . . . Special Weapon . | . . . Impact Weapon . | . . . Slashing Weapon 1 | . . 1 Piercing Weapon . | . . . Special Melee Weapon 1 | . 1 . Unidentified Prototypes . | . . . Parts Lost 10 | . 5 5 Power 2 | . 1 1 Propulsion 4 | . 2 2 Utility . | . . . Weapon 4 | . 2 2 Highest Loss Streak 5 | . 3 5 To Critical Strikes . | . . . Average Backups 2 | . 3 1 Power 1 | . 1 . Propulsion . | . . . Utility . | . 1 1 Weapon . | . . . Tool/Special . | . . . Unused Backups . | . . . Power . | . . . Propulsion . | . . . Utility . | . . . Weapon . | . . . Tool/Special . | . . . Average Slot Usage (%) 89 | . 90 81 Engine 9 | . 9 6 Core 4 | . 4 9 Treads 20 | . 24 . Leg 2 | . . 15 Storage 15 | . 14 20 Processor 2 | . 3 . Hackware 9 | . 9 11 Energy Gun 1 | . . 9 Ballistic Gun 17 | . 19 7 Special Melee Weapon 3 | . 3 . Peak Build Rating 14 | 6 12 14 Average Rating 8 | 4 8 11 On Entrance 6 | . 6 12 Avg Prop Armor Cover (%) . | . . . Naked Turns . | . . . Heaviest Build 37 | 14 29 37 Greatest Support 40 | 40 40 20 Greatest Overweight (x) 8 | . 8 8 Average Overweight (x) . | . . 1 Largest Inventory Capacity 15 | 8 15 15 Average Capacity 13 | 6 14 15 Most Carried 4 | 2 4 3 Average Carried 2 | 1 3 1 Final Capacity 15 | 8 15 15 Final Carried 4 | 2 4 1 Class Distribution -------------------- 88% | Mutant 11% | Scavenger-Mutant Dominant Class ---------------- Mutant | -10/Materials Scavenger-Mutant | -9/Materials Resources | -11 -10 -9 ----------- Run | Yrd Mat Mat Matter Collected 562 | 302 246 14 Remotely . | . . . Salvage Created 696 | 162 323 211 Parts 45 | 12 21 12 Haulers Intercepted . | . . . Recyclers Shooed 1 | . . 1 Parts Field Recycled . | . . . Retrieved Matter . | . . . Parts Self-Destructed . | . . . Prevented . | . . . Parts Restored . | . . . Kills | -11 -10 -9 ------- Run | Yrd Mat Mat Combat Hostiles Destroyed 14 | . 9 5 Melee 1 | . . 1 Guns 13 | . 9 4 Classes Destroyed 8 | 2 4 2 Tunneler 3 | 3 . . Recycler 1 | 1 . . Operator 2 | . 2 . Watcher 1 | . 1 . Swarmer 3 | . 3 . Grunt 9 | . 6 3 Duelist 1 | . . 1 Sentry 1 | . . 1 Best Kill Streak 4 | 4 4 3 Combat Bots Only 3 | . 3 3 Max Kills in Single Turn 1 | 1 1 1 Gunslinging . | . . . Exploded . | . . . Melee 1 | . . 1 Uniques/NPCs Destroyed . | . . . Combat | -11 -10 -9 -------- Run | Yrd Mat Mat Hostile Shots Fired 164 | . 103 61 Missed 39 | . 26 13 Hits 125 | . 77 48 Melee 10 | . . 10 Projectile 115 | . 77 38 Critical Strikes 3 | . . 3 Damage Taken 1708 | . 854 854 Core 586 | . 185 401 Absorbed by Shields . | . . . Core Remaining (%) 63 | 100 26 . Volleys Fired 81 | 7 55 19 Largest 2 | 2 2 2 Hottest 85 | 40 40 85 Shots Fired 113 | 14 71 28 Gun 113 | 14 71 28 Cannon . | . . . Launcher . | . . . Special . | . . . Kinetic 94 | 14 71 9 Thermal 19 | . . 19 Explosive . | . . . Electromagnetic . | . . . Robot Hit Streak 12 | 6 12 5 Robot Miss Streak 5 | 1 5 2 Penetration Max . | . . . Secondary Targets 1 | . 1 . Max Gunslinging Chain 1 | . 1 . Shots Hit Robots 85 | 12 51 22 Core Hits 41 | 5 26 10 Critical Kills 1 | . 1 . Critical Parts Destroyed 1 | . 1 . Critical Strikes 3 | . 2 1 Burn 1 | . . 1 Destroy 2 | . 2 . Melee Attacks 4 | . 3 1 Impact . | . . . Slashing 1 | . . 1 Piercing . | . . . Sneak Attacks 3 | . 3 . Combat Hostiles . | . . . Follow-up Attacks . | . . . Damage Inflicted 1011 | 133 539 339 Guns 982 | 133 539 310 Cannons . | . . . Explosions . | . . . Melee 29 | . . 29 Ramming . | . . . Kinetic 736 | 133 539 64 Thermal 246 | . . 246 Explosive . | . . . Electromagnetic . | . . . Impact . | . . . Slashing 29 | . . 29 Piercing . | . . . Highest Corruption 1 | . 1 . Average Corruption 1 | . 1 . Corruption Purged . | . . . Corruption Blocked . | . . . Effects 2 | . 2 . Message Errors 1 | . 1 . Heat Flow Errors 1 | . 1 . Overload Shots . | . . . Overflow Damage . | . . . Projectiles . | . . . Explosions . | . . . Melee . | . . . Knockbacks . | . . . Impact . | . . . Kinetic . | . . . Secondary . | . . . Self-Inflicted Damage . | . . . Shots . | . . . Rammed . | . . . Targets Rammed . | . . . Kicked . | . . . Crushed . | . . . Highest Temperature 442 | . 212 442 Average Temperature 147 | . 45 199 Received Heat Transfer 534 | . 342 192 Effects 1 | . . 1 Shutdowns 1 | . . 1 Siege Activations . | . . . Martial Activations . | . . . Shielding Activations . | . . . Robots Disrupted . | . . . Combat Hostiles . | . . . Robots Corrupted . | . . . Combat Hostiles . | . . . Parts Fried . | . . . Impact Corruptions . | . . . Robots Melted . | . . . Combat Hostiles . | . . . Parts Melted . | . . . Heat Transferred 666 | . . 666 Parts Sabotaged . | . . . Parts Stolen . | . . . Parts Stripped . | . . . Power Chain Reactions . | . . . Alert | -11 -10 -9 ------- Run | Yrd Mat Mat Maximum Alert Level . | . . . Low Security (%) 100 | 100 100 100 Level 1 . | . . . Level 2 . | . . . Level 3 . | . . . Level 4 . | . . . Level 5 . | . . . High Security . | . . . Max Security . | . . . Peak Influence 80 | 10 80 65 Initial 9 | . . 9 Average 18 | 2 21 23 Influence Increases 411 | 20 256 135 Destroy 0b10 Robot/C 280 | . 180 100 Destroy 0b10 Robot/NC 35 | 20 15 . Destroy Leader 62 | . 42 20 Successful Hack 4 | . 4 . Disable Machine 15 | . 15 . Lose Combat Pursuer 15 | . . 15 Influence Decreases 346 | 20 234 92 Entered New Map 13 | . . 13 Time Decay 263 | 20 204 39 Lost Part 70 | . 30 40 Squads Dispatched 5 | . 4 1 Investigation 2 | . 2 . Extermination . | . . . Reinforcement 3 | . 2 1 Assault . | . . . Garrison . | . . . Intercept . | . . . Searches Triggered . | . . . Construction Impeded . | . . . Haulers Reinforced . | . . . Active Scanning Responses . | . . . Cargo Convoy Interrupts . | . . . Stealth | -11 -10 -9 --------- Run | Yrd Mat Mat Distress Signals 6 | . 1 5 Communications Jammed . | . . . Distress Signals . | . . . Times Spotted 23 | . 14 9 Peak Tracking Total 6 | . 3 6 Tactical Retreats 1 | . . 1 Traps | -11 -10 -9 ------- Run | Yrd Mat Mat Traps Triggered 1 | . 1 . Indirectly . | . . . Trap Hack Attempts . | . . . Triggered . | . . . Disarmed . | . . . Reprogrammed . | . . . Reused . | . . . Traps Extracted . | . . . Installed . | . . . Triggered . | . . . Machines | -11 -10 -9 ---------- Run | Yrd Mat Mat Machines Disabled 1 | . 1 . Max in Single Turn 1 | . 1 . Machines Repaired . | . . . Machines Dismantled . | . . . Machines Sabotaged . | . . . Overloaded Fab Kills . | . . . Hacking | -11 -10 -9 --------- Run | Yrd Mat Mat Machines Accessed 2 | . 2 . Terminals 1 | . 1 . Fabricators . | . . . Repair Stations . | . . . Recycling Units 1 | . 1 . Scanalyzers . | . . . Garrison Access . | . . . Total Hacks 6 | . 6 . Successful 3 | . 3 . Failed 3 | . 3 . Catastrophic . | . . . Database Lockouts . | . . . Manual . | . . . Terminals 3 | . 3 . Fabricators . | . . . Repair Stations . | . . . Recycling Units 3 | . 3 . Scanalyzers . | . . . Garrison Access . | . . . Terminal Hacks 2 | . 2 . Recall Reinforcements 1 | . 1 . Zone Layout 1 | . 1 . Fabricator Hacks . | . . . Repair Station Hacks . | . . . Recycling Unit Hacks 1 | . 1 . Report Inventory 1 | . 1 . Scanalyzer . | . . . Garrison Access Hacks . | . . . Unauthorized Hacks . | . . . Terminals . | . . . Fabricators . | . . . Repair Stations . | . . . Recycling Units . | . . . Scanalyzers . | . . . Garrison Access . | . . . Data Cores Recovered . | . . . Used . | . . . Hacking Detections 2 | . 2 . Full Trace Events 2 | . 2 . Feedback Events . | . . . Feedback Blocked . | . . . Robot Schematics Acquired . | . . . Robots Built . | . . . Authchips . | . . . Time . | . . . Total Robot Build Rating . | . . . Part Schematics Acquired . | . . . Parts Built . | . . . Authchips . | . . . Time . | . . . Total Part Build Rating . | . . . Part Studies Acquired . | . . . Parts Repaired . | . . . Time . | . . . Parts Recycled . | . . . Recycled Matter . | . . . Retrieved Matter . | . . . Retrieved Components . | . . . Parts Scanalyzed . | . . . Part Schematics Acquired . | . . . Parts Damaged . | . . . Bothacking | -11 -10 -9 ------------ Run | Yrd Mat Mat Used RIF Installer . | . . . Robots Hacked . | . . . Non-combat . | . . . Combat . | . . . Robot Hacks Applied . | . . . Relay Couplers Released . | . . . Fabnet Peak Effective % . | . . . Robots Rewired . | . . . Allies Hacked . | . . . Hacks Repelled . | . . . Allies | -11 -10 -9 -------- Run | Yrd Mat Mat Total Allies . | . . . Largest Group . | . . . Highest-Rated Group . | . . . Highest-Rated Ally . | . . . Total Orders . | . . . Ally Attacks . | . . . Total Damage . | . . . Kills . | . . . Allies Corrupted . | . . . Allies Melted . | . . . Intel | -11 -10 -9 ------- Run | Yrd Mat Mat Active Infowar (turns) 134 | . 134 . Optics 134 | . 134 . Robot Analysis Total . | . . . Derelict Logs Recovered . | . . . Drone Launches . | . . . Drone Recoveries . | . . . Exploration | -11 -10 -9 ------------- Run | Yrd Mat Mat Turns Passed 803 | 130 585 88 Spaces Moved 345 | 66 262 17 Core 16 | 6 8 2 Treads 307 | 60 247 . Legs 22 | . 7 15 Wheels . | . . . Hover . | . . . Flight . | . . . Fastest Speed 50 | 50 160 190 Average Speed 168 | 150 169 220 Slowest Speed 450 | 160 450 450 Overloaded Moves . | . . . Propulsion Burnouts . | . . . Robots Hopped . | . . . Potential Cave-ins . | . . . Cave-ins Triggered . | . . . Exploration Rate (%) 17 | 5 42 4 Regions Visited 2 Branch Regions . Pre-discovered Areas . | . . . Known Exits Taken . | . . . Unknown Exits Taken 2 | 1 1 . Scrap Searched . | . . . Spaces Dug . | . . . Terrain Destroyed . | . . . Melee . | . . . Projectile . | . . . AOE . | . . . Terrain Rammed . | . . . Walls Destroyed . | . . . Machines Disabled . | . . . Actions | -11 -10 -9 --------- Run | Yrd Mat Mat Total 452 | 80 331 41 Wait . | . . . Move 343 | 65 261 17 Hop . | . . . Pick Up 3 | 2 1 . Fast Attach 13 | 6 6 1 Attach 3 | . 1 2 Detach 1 | . 1 . Swap 3 | . 3 . Drop 1 | . . 1 Fire 81 | 7 55 19 Melee 4 | . 3 1 Ram . | . . . Kick . | . . . Crush . | . . . Escape Stasis . | . . . Rewire . | . . . Trap . | . . . Miscellaneous . | . . . Route ------- -11/Scrapyard -10/Materials (discovered 3 exits: [*Mat x2] / [*Min]) -9/Materials History --------- Turn | Location | Event 3 | -11/Scrapyard | Discovered new exit (range 14) 131 | -11/Scrapyard | Entered Materials 132 | -10/Materials | Met a group of wandering Federalists 328 | -10/Materials | Build established: Mutant 362 | -10/Materials | Discovered new exit (range 15) 365 | -10/Materials | Discovered new exit (range 14) 634 | -10/Materials | Discovered new exit (range 4) 644 | -10/Materials | Core integrity fell below 50% 690 | -10/Materials | Lost 3 parts (1p2n) 716 | -10/Materials | Entered another Materials area 716 | -9/Materials | Evolved 2 slots: Power x1, Utility x1 787 | -9/Materials | Core integrity fell below 50% 799 | -9/Materials | Core integrity fell below 20% 804 | -9/Materials | Destroyed by Y-45 Defender with Heavy Assault Rifle Last Messages --------------- 00762_ Lgt. Ion Engine severed. 00764_ W-16 Scout sends out distress signal. 00767_ L-31 Rogue suffers critical hit (Burn). 00772_ Lgt. Assault Rifle destroyed. 00777_ Aluminum Leg destroyed. 00781_ Destroyed Imp. Ion Engine. 00783_ G-34 Mercenary destroyed. 00785_ L-31 Rogue destroyed. 00786_ U-05 Engineer destroyed. 00787_ Power failure, Lgt. Nuclear Core shutdown. 00788_ W-16 Scout sends out distress signal. 00792_ Lgt. Nuclear Core destroyed. 00792_ Particle Gun destroyed. 00792_ Critical hit (Burn: +37). 00793_ Acquired 14 matter. 00794_ W-16 Scout sends out distress signal. 00799_ R-06 Scavenger collects Welding Torch. 00802_ R-06 Scavenger collects Wheel. 00802_ Acquired Katana. 00803_ Y-45 Defender destroyed. Map ----- +----------------------------------------------------+ | | | | | | | | | | | | | | | | | | | | | | | | | | | | | | | ?????????????????????????????????????????????????? | | ?????????????????????????????????????????????????? | | ?????????????????????????????????????????????????? | | ?????????????????????????????????????????????????? | | ?????????????????????????????????????#####???????? | | ?????????????????????????????????????# #???????? | | ?????????????????????????????????????# * #???????? | | ?????????????????????????????????????# #???????? | | ?????????????#######+################# #???????? | | ?????????? oY *[%*%**! #???????? | | ?????????? =!Y!%@%[* C #???????? | | ???????????????#####+#####=!########## #???????? | | ?????????????????????????#[ #????????# #???????? | | ?????????????????????????# r#????????# #???????? | | ?????????????????????????# #????????# #???????? | | ?????????????????????????# #????????+ +???????? | | ?????????????????????????# #????????# #???????? | | ?????????????????????????# #????????# #???????? | | ?????????????????????????# #????????# #???????? | | ?????????????????????????# #????????# #???????? | | ?????????????????????????# #????????# #???????? | | ?????????????????????????# #????????# #???????? | | ?????????????????????????? ????????? #???????? | | ?????????????????????????? ????????? ???????? | | ?????????????????????????? T????????? ????????? | | ?????????????????????????? ?????????????????????? | | ?????????????????????????????????????????????????? | | ?????????????????????????????????????????????????? | | ?????????????????????????????????????????????????? | | ?????????????????????????????????????????????????? | | ?????????????????????????????????????????????????? | | ?????????????????????????????????????????????????? | | ?????????????????????????????????????????????????? | | ?????????????????????????????????????????????????? | | ?????????????????????????????????????????????????? | +----------------------------------------------------+ Best States ------------- Heat Dissipation 28 Energy Generation 19 Energy Capacity 250 Matter Stores 300 Matter Capacity 300 Sight Range 18 Terrain Scan Density 10 Evasion (%) 40 Recoil Reduction 2 Offensive Hacking 10 Item Schematics ----------------- None Robot Schematics ------------------ None Fabricated ------------ Nothing Repaired ---------- Nothing Studied --------- None Alien Tech Used ----------------- None Achievements -------------- None Challenges ------------ None Game ------ Seed PropulsionStormTelecube Manual? 0 Play Time 00:06:35 Cumulative 79.7 hours Start 2026.01.07 @ 20:58:19 End 2026.01.08 @ 20:53:16 Sessions 3 Manual Loads 0 Difficulty Rogue Special Mode None Game No. 57 Rogue 1 Adventurer 2 Explorer 54 Win Type - Total 0 Types 0/0/0/0/0/0/0/0/0/0 Lore% 19 Gallery% 45 Achievement% 30 Wizard Run 0 Options --------- Layout 0 ASCII 0 Keyboard 0 Movement Numpad Keybinds 1 Fullscreen 2 Font 36/Smallcaps Map View 38x25 Zoom Use 99% Tactical HUD 1 Map Filters NONE Filters NONE Steam 1 RUN: efae16fc-f0ea-4969-b203-de7af837ff76